Cogmind - Beta 16 @@@ ROGUE MODE // 2025.11.16 @ 12:16:44 // Winter2019/RPGLIKE Player: Jaegerpls Result: Destroyed by G-34 Mercenary with Small Laser Performance ------------- Evolutions (0) 0 Regions Visited (1) 200 Robots Destroyed (36) 180 Value Destroyed (586) 586 Prototype IDs (1) 20 Alien Tech Used (0) 0 Bonus (0) 0 TOTAL SCORE: 986 Bonus ------- None Cogmind --------- Core Integrity 0/600 Matter 300/300 Energy 46/250 System Corruption 0% Temperature Warm (196) Movement Flying (37) Location -10/Materials Parts ------- > --- POWER (1) -------- Ion Engine > --- PROPULSION (2) --- Improved Flight Unit Improved Flight Unit > --- UTILITY (4) ------ Heat Sink Weight Redist. System Improved Terrain Scanner Hacking Suite > --- WEAPON (2) ------- Beam Cannon Beam Cannon > --- INVENTORY (1) ---- Improved Flight Unit Peak State ------------ > --- POWER ------------ Ion Engine > --- PROPULSION ------- Improved Flight Unit Improved Flight Unit > --- UTILITY ---------- Heat Sink Weight Redist. System Improved Terrain Scanner Hacking Suite > --- WEAPON ----------- Beam Cannon Beam Cannon > --- INVENTORY -------- Beam Cannon [Rating: 18] Favorites ----------- Power Ion Engine Engine Ion Engine Propulsion Wheel Wheel Wheel Hover Unit Hover Unit Flight Unit Improved Flight Unit Utility Improved Terrain Scanner Device Improved Terrain Scanner Hackware Hacking Suite Protection Light Armor Plating Weapon Beam Cannon Energy Gun Small Laser Energy Cannon Beam Cannon Ballistic Gun Assault Rifle Launcher Grenade Launcher Build | -11 -10 ------- Run | Yrd Mat Slots Evolved 5 | 4 1 Power . | . . Propulsion 1 | 1 . Utility 3 | 2 1 Weapon 1 | 1 . Parts Attached 23 | 8 15 Power 1 | 1 . Engine 1 | 1 . Core . | . . Reactor . | . . Propulsion 7 | 3 4 Treads . | . . Leg . | . . Wheel 3 | 3 . Hover 1 | . 1 Flight 3 | . 3 Utility 9 | 2 7 Device 7 | 2 5 Storage . | . . Processor . | . . Hackware 1 | . 1 Protection 1 | . 1 Artifact . | . . Weapon 6 | 2 4 Energy Gun 1 | . 1 Energy Cannon 2 | . 2 Ballistic Gun 2 | 2 . Ballistic Cannon . | . . Launcher 1 | . 1 Special Weapon . | . . Impact Weapon . | . . Slashing Weapon . | . . Piercing Weapon . | . . Special Melee Weapon . | . . Unidentified Prototypes 1 | . 1 Parts Lost 1 | . 1 Power . | . . Propulsion . | . . Utility 1 | . 1 Weapon . | . . Highest Loss Streak 1 | . 1 To Critical Strikes . | . . Average Backups . | . . Power . | . . Propulsion . | . . Utility . | . . Weapon . | . . Tool/Special . | . . Unused Backups 2 | . 2 Power . | . . Propulsion 1 | . 1 Utility . | . . Weapon 1 | . 1 Tool/Special . | . . Average Slot Usage (%) 92 | . 92 Engine 11 | . 11 Wheel 14 | . 14 Hover 2 | . 2 Flight 3 | . 3 Device 27 | . 27 Hackware 4 | . 4 Protection 5 | . 5 Energy Gun 3 | . 3 Energy Cannon 9 | . 9 Ballistic Gun 7 | . 7 Launcher 1 | . 1 Peak Build Rating 18 | 9 18 Average Rating 11 | 5 11 On Entrance 4 | . 9 Avg Prop Armor Cover (%) . | . . Naked Turns . | . . Heaviest Build 16 | 10 16 Greatest Support 26 | 26 20 Greatest Overweight (x) 2 | 2 2 Average Overweight (x) . | . . Largest Inventory Capacity 1 | 1 1 Average Capacity 1 | 1 1 Most Carried 1 | 1 1 Average Carried . | . . Final Capacity 1 | 1 1 Final Carried 1 | 1 1 Class Distribution -------------------- 71% | Scavenger-Mutant 28% | Mutant Dominant Class ---------------- Scavenger-Mutant | -10/Materials Resources | -11 -10 ----------- Run | Yrd Mat Matter Collected 813 | 328 485 Remotely 117 | . 117 Salvage Created 1046 | 133 913 Parts 74 | 11 63 Haulers Intercepted 2 | . 2 Recyclers Shooed 1 | 1 . Parts Field Recycled . | . . Retrieved Matter . | . . Parts Self-Destructed . | . . Prevented . | . . Parts Restored . | . . Kills | -11 -10 ------- Run | Yrd Mat Combat Hostiles Destroyed 21 | . 21 Guns 13 | . 13 Cannons 5 | . 5 AOE 3 | . 3 Classes Destroyed 9 | 2 7 Worker 1 | . 1 Tunneler 4 | 3 1 Hauler 2 | . 2 Recycler 4 | 1 3 Operator 1 | . 1 Watcher 3 | . 3 Swarmer 12 | . 12 Grunt 8 | . 8 Subdweller 1 | . 1 Best Kill Streak 9 | 2 9 Combat Bots Only 5 | . 5 Max Kills in Single Turn 2 | 1 2 Gunslinging . | . . Exploded 1 | . 1 Melee . | . . Uniques/NPCs Destroyed . | . . Combat | -11 -10 -------- Run | Yrd Mat Hostile Shots Fired 118 | . 118 Missed 36 | . 36 Hits 82 | . 82 Projectile 82 | . 82 AOE 1 | . 1 Critical Strikes 1 | . 1 Damage Taken 908 | . 908 Core 685 | . 685 Absorbed by Shields . | . . Redirected to Core 558 | . 558 Core Remaining (%) 100 | 100 . Volleys Fired 115 | 12 103 Largest 2 | 2 2 Hottest 120 | 40 120 Shots Fired 178 | 24 154 Gun 131 | 24 107 Cannon 42 | . 42 Launcher 5 | . 5 Special . | . . Kinetic 109 | 24 85 Thermal 64 | . 64 Explosive 5 | . 5 Electromagnetic . | . . Robot Hit Streak 7 | 5 7 Robot Miss Streak 6 | 2 6 Penetration Max . | . . Secondary Targets . | . . Shots Hit Robots 102 | 14 88 Core Hits 48 | 5 43 Critical Kills . | . . Critical Parts Destroyed . | . . Critical Strikes . | . . Melee Attacks . | . . Impact . | . . Slashing . | . . Piercing . | . . Sneak Attacks . | . . Combat Hostiles . | . . Follow-up Attacks . | . . Damage Inflicted 1664 | 150 1514 Guns 894 | 150 744 Cannons 499 | . 499 Explosions 271 | . 271 Melee . | . . Ramming . | . . Kinetic 770 | 150 620 Thermal 623 | . 623 Explosive 271 | . 271 Electromagnetic . | . . Impact . | . . Slashing . | . . Piercing . | . . Highest Corruption . | . . Average Corruption . | . . Corruption Purged . | . . Corruption Blocked . | . . Overload Shots . | . . Overflow Damage 16 | . 16 Projectiles 8 | . 8 Explosions 8 | . 8 Melee . | . . Knockbacks . | . . Impact . | . . Kinetic . | . . Secondary . | . . Self-Inflicted Damage . | . . Shots . | . . Rammed . | . . Targets Rammed . | . . Kicked . | . . Crushed . | . . Highest Temperature 190 | . 190 Average Temperature 35 | . 35 Received Heat Transfer 285 | . 285 Siege Activations . | . . Martial Activations . | . . Shielding Activations . | . . Robots Disrupted . | . . Combat Hostiles . | . . Robots Corrupted . | . . Combat Hostiles . | . . Parts Fried . | . . Impact Corruptions . | . . Robots Melted . | . . Combat Hostiles . | . . Parts Melted 5 | . 5 Heat Transferred 1311 | . 1311 Parts Sabotaged . | . . Parts Stolen . | . . Parts Stripped . | . . Power Chain Reactions . | . . Alert | -11 -10 ------- Run | Yrd Mat Maximum Alert Level 1 | . 1 Low Security (%) 82 | 100 81 Level 1 17 | . 18 Level 2 . | . . Level 3 . | . . Level 4 . | . . Level 5 . | . . High Security . | . . Max Security . | . . Peak Influence 325 | 5 325 Initial 3 | . 3 Average 104 | 1 112 Influence Increases 705 | 20 685 Destroy 0b10 Robot/C 400 | . 400 Destroy 0b10 Robot/NC 75 | 20 55 Destroy Leader 100 | . 100 Successful Hack 14 | . 14 Disable Machine 30 | . 30 Destroy Structure 26 | . 26 Lose Combat Pursuer 60 | . 60 Influence Decreases 675 | 15 660 Entered New Map 2 | . 2 Time Decay 373 | 15 358 Purge Threat 300 | . 300 Squads Dispatched 5 | . 5 Investigation 1 | . 1 Extermination . | . . Reinforcement 4 | . 4 Assault . | . . Garrison . | . . Intercept . | . . Searches Triggered . | . . Construction Impeded . | . . Haulers Reinforced . | . . Active Scanning Responses . | . . Cargo Convoy Interrupts . | . . Stealth | -11 -10 --------- Run | Yrd Mat Distress Signals 2 | . 2 Communications Jammed . | . . Distress Signals . | . . Times Spotted 36 | . 36 Peak Tracking Total 5 | . 5 Tactical Retreats 4 | . 4 Traps | -11 -10 ------- Run | Yrd Mat Traps Triggered 2 | . 2 Indirectly . | . . Trap Hack Attempts . | . . Triggered . | . . Disarmed . | . . Reprogrammed . | . . Reused . | . . Traps Extracted . | . . Installed . | . . Triggered . | . . Machines | -11 -10 ---------- Run | Yrd Mat Machines Disabled 2 | . 2 Max in Single Turn 1 | . 1 Machines Repaired . | . . Machines Dismantled . | . . Machines Sabotaged . | . . Overloaded Fab Kills . | . . Hacking | -11 -10 --------- Run | Yrd Mat Machines Accessed 7 | . 7 Terminals 6 | . 6 Fabricators . | . . Repair Stations . | . . Recycling Units 1 | . 1 Scanalyzers . | . . Garrison Access . | . . Total Hacks 28 | . 28 Successful 16 | . 16 Failed 11 | . 11 Catastrophic . | . . Database Lockouts 1 | . 1 Manual 23 | . 23 Terminals 24 | . 24 Fabricators . | . . Repair Stations . | . . Recycling Units 4 | . 4 Scanalyzers . | . . Garrison Access . | . . Terminal Hacks 4 | . 4 Robot Analysis 2 | . 2 Unreport Threat 2 | . 2 Fabricator Hacks . | . . Repair Station Hacks . | . . Recycling Unit Hacks 2 | . 2 Report Inventory 1 | . 1 Retrieve Components 1 | . 1 Scanalyzer . | . . Garrison Access Hacks . | . . Unauthorized Hacks 10 | . 10 Terminals 8 | . 8 Botnet 2 | . 2 Skim 6 | . 6 Fabricators . | . . Repair Stations . | . . Recycling Units 2 | . 2 Reject 1 | . 1 Mask 1 | . 1 Scanalyzers . | . . Garrison Access . | . . Data Cores Recovered . | . . Used . | . . Hacking Detections 7 | . 7 Full Trace Events . | . . Feedback Events . | . . Feedback Blocked . | . . Robot Schematics Acquired . | . . Robots Built . | . . Authchips . | . . Time . | . . Total Robot Build Rating . | . . Part Schematics Acquired . | . . Parts Built . | . . Authchips . | . . Time . | . . Total Part Build Rating . | . . Part Studies Acquired . | . . Parts Repaired . | . . Time . | . . Parts Recycled . | . . Recycled Matter . | . . Retrieved Matter . | . . Retrieved Components 10 | . 10 Parts Scanalyzed . | . . Part Schematics Acquired . | . . Parts Damaged . | . . Bothacking | -11 -10 ------------ Run | Yrd Mat Used RIF Installer . | . . Robots Hacked . | . . Non-combat . | . . Combat . | . . Robot Hacks Applied . | . . Relay Couplers Released . | . . Fabnet Peak Effective % . | . . Robots Rewired . | . . Allies Hacked . | . . Hacks Repelled . | . . Allies | -11 -10 -------- Run | Yrd Mat Total Allies . | . . Largest Group . | . . Highest-Rated Group . | . . Highest-Rated Ally . | . . Total Orders . | . . Ally Attacks . | . . Total Damage . | . . Kills . | . . Allies Corrupted . | . . Allies Melted . | . . Intel | -11 -10 ------- Run | Yrd Mat Active Infowar (turns) 1135 | 27 1108 Terrain 1135 | 27 1108 Seismic 641 | 7 634 Robot Analysis Total 2 | . 2 Derelict Logs Recovered . | . . Drone Launches . | . . Drone Recoveries . | . . Exploration | -11 -10 ------------- Run | Yrd Mat Turns Passed 1241 | 92 1149 Spaces Moved 812 | 54 758 Core 9 | 9 . Treads . | . . Legs . | . . Wheels 414 | 45 369 Hover 221 | . 221 Flight 168 | . 168 Fastest Speed 37 | 50 37 Average Speed 79 | 86 79 Slowest Speed 180 | 150 180 Overloaded Moves . | . . Propulsion Burnouts . | . . Robots Hopped . | . . Potential Cave-ins . | . . Cave-ins Triggered . | . . Exploration Rate (%) 44 | 4 84 Regions Visited 1 Branch Regions . Pre-discovered Areas . | . . Known Exits Taken . | . . Unknown Exits Taken 1 | 1 . Scrap Searched . | . . Spaces Dug . | . . Terrain Destroyed 27 | . 27 Melee . | . . Projectile . | . . AOE 27 | . 27 Terrain Rammed . | . . Walls Destroyed . | . . Machines Disabled . | . . Actions | -11 -10 --------- Run | Yrd Mat Total 1227 | 73 1154 Wait 251 | . 251 Move 811 | 53 758 Hop . | . . Pick Up 2 | . 2 Fast Attach 24 | 7 17 Attach . | . . Detach 3 | . 3 Swap 2 | 1 1 Drop 15 | . 15 Fire 115 | 12 103 Melee . | . . Ram . | . . Kick . | . . Crush . | . . Escape Stasis . | . . Rewire . | . . Trap . | . . Miscellaneous 4 | . 4 Route ------- -11/Scrapyard -10/Materials (discovered 4 exits: [*Mat x3] / [*Min]) History --------- Turn | Location | Event 1 | -11/Scrapyard | Upgraded with Propulsion slot (x1) 1 | -11/Scrapyard | Upgraded with Utility slot (x2) 1 | -11/Scrapyard | Upgraded with Weapon slot (x1) 3 | -11/Scrapyard | Discovered new exit (range 16) 93 | -11/Scrapyard | Entered Materials 135 | -10/Materials | Discovered new exit (range 8) 390 | -10/Materials | Discovered new exit (range 5) 573 | -10/Materials | Build established: Scavenger-Mutant 595 | -10/Materials | Reached level 2 601 | -10/Materials | Upgraded with Utility slot (x1) 632 | -10/Materials | Discovered new exit (range 16) 686 | -10/Materials | Central database locked down 753 | -10/Materials | Core integrity fell below 50% 777 | -10/Materials | Discovered new exit (range 14) 793 | -10/Materials | Derelicts attacked the area 980 | -10/Materials | Core integrity fell below 20% 1242 | -10/Materials | Destroyed by G-34 Mercenary with Small Laser Last Messages --------------- 01065_ Faulty integration triggers energy drain (-190). 01067_ Dropped Faulty Imp. Flight Unit. 01069_ Acquired Imp. Flight Unit. 01075_ Dropped Hover Unit. 01084_ Acquired Hover Unit. 01085_ Dropped Hover Unit. 01089_ K-01 Serf collects debris. 01093_ Acquired Imp. Flight Unit. 01111_ K-01 Serf destroyed. 01140_ RX-GEQ(R) destroyed. 01141_ K-01 Serf collects debris. 01152_ Acquired 23 matter. 01163_ K-01 Serf collects debris. 01213_ Dropped Beam Cannon. 01214_ Acquired Imp. Flight Unit. 01218_ K-01 Serf collects debris. 01220_ Acquired 17 matter. 01227_ Critical hit (Burn: +37). 01234_ Particle Gun melted. 01234_ G-47 Trooper destroyed. Map ----- +----------------------------------------------------+ | %#################### ? ???????? | | ####### #### ??????? | | # # #### ??????? | | # ###? ? ? ?????? | | + """ """ #### ##### ##?????? | | # """ """ #### ########?????? | | ##### # """ """ #### ########?????? | | ##### #####[%% #### #?######?????? | | ##### ##### =#### ######## ????? | | ##### ############+##### ########?#?#?? | | ##### ############%##### # # ??### | | ##### ############ ##### < # ???##?# | | ### ############ ##### # #??#??? | | ### ############ ##### + #?##??? | | ### ########### k # ? ##### | | " " = "###### ^ # # ##### | | = "###### "######## ?#### | | ]|| ###### ! T# #?####? | | | ###### % " "# # ##### | | [[ ##### " # # ###?? | | [[ ## # + # ##### | | """###% ]# + ###?# | | % % # # ##### | | """""### #####+## ##### | | " ########### ##### ##### | | ### ######## # @ # ### ##### | | ### ######## # # ### ##### | | """ ####### [[ + g !!! ###?# | | " ####### """ [[ # !! ##### | | "| ####### """ [ # !! ##### | | "" < ####### """ # ##### | | "| ####### # ##### | | " ####### # ##### | | """ ################# """T""" ##### | | ### ################## ######## ##### | | ### ################## # # ##### | | ### ################## # """ # ##### | | ### ################## =# """ # ##### | | ### =################## =# R" # ##### | | ## ##### ####### %# """ # ##### | | =% ! #######%!=# # ##### | | = ! = [ ##+##### ##### | | ####### %%%% ##### | | "# ##### ####### % ########### | | "###+################### ########### | | " # ## ########### | | " % # """ ## ##########? | | " " """ # = """ ## #### ?## | | # """" """" # """ ## ### ##### | | # "" """ # =% ## ### ## ?? | +----------------------------------------------------+ Best States ------------- Heat Dissipation 41 Energy Generation 10 Energy Capacity 250 Matter Stores 300 Matter Capacity 300 Sight Range 16 Robot Scan Range 4 Terrain Scan Range 16 Terrain Scan Density 510 Additional Mass Support 6 Armor Coverage 150 Evasion (%) 62 Offensive Hacking 10 Item Schematics ----------------- None Robot Schematics ------------------ None Fabricated ------------ Nothing Repaired ---------- Nothing Studied --------- None Alien Tech Used ----------------- None Achievements -------------- None Challenges ------------ None RPGLIKE | -11 -10 --------- Run | Yrd Mat Levels Raised 1 | . 1 XP Earned 5600 | 3000 2600 XP Spent 4475 | 2995 1480 Upgrades 14 | 11 3 Propulsion Slot 1 | 1 . Utility Slot 3 | 2 1 Weapon Slot 1 | 1 . Heat Dissipation 1 | 1 . Inventory Capacity 1 | 1 . Sensor Range 2 | 2 . Terrain Scan Density 5 | 3 2 Protomatter Created 121 | . 121 Integrity Restored 78 | . 78 Core 78 | . 78 Protomatter Decayed 76 | . 76 Game ------ Seed ActiveShadingCompactor Manual? 0 Play Time 00:19:27 Cumulative 54.9 hours Start 2025.11.16 @ 11:59:48 End 2025.11.16 @ 12:16:44 Sessions 1 Manual Loads 0 Difficulty Rogue Special Mode Winter2019/RPGLIKE Game No. 52 Rogue 52 Adventurer 0 Explorer 0 Win Type - Total 0 Types 0/0/0/0/0/0/0/0/0/0 Lore% 50 Gallery% 34 Achievement% 32 Wizard Run 0 Options --------- Layout 0 ASCII 0 Keyboard 0 Movement Mouse Keybinds 0 Fullscreen 2 Font 24/Smallcaps Map View 76x50 Zoom Use 0% Tactical HUD 1 Map Filters NONE Filters NONE Steam 1 RUN: 91c8738b-1bc0-4e1c-a7c6-09dfbe995fac